[Event "Early-Titled-Tuesday-Blitz-March-26-2024"]
[Site "Chess.com"]
[Date "2024.03.26"]
[Round "9"]
[White "ViktoriyaTarasova"]
[Black "Boorchess"]
[Result "1/2-1/2"]
[WhiteElo "2372"]
[BlackElo "2539"]
[TimeControl "180+1"]
[EndTime "9:41:33 PDT"]
[Termination "Game drawn by repetition"]

1. d4 {[%clk 0:03:00.9]} 1... Nf6 {[%clk 0:02:58.6]} 2. c4 {[%clk 0:02:59.9]}
2... e6 {[%clk 0:02:58.1]} 3. Nc3 {[%clk 0:03:00]} 3... Bb4 {[%clk 0:02:57.5]}
4. e3 {[%clk 0:02:59.4]} 4... Bxc3+ {[%clk 0:02:57]} 5. bxc3 {[%clk 0:02:58.9]}
5... c5 {[%clk 0:02:56.9]} 6. Bd3 {[%clk 0:02:59.3]} 6... d6 {[%clk 0:02:56.8]}
7. Ne2 {[%clk 0:02:59.8]} 7... Nc6 {[%clk 0:02:56.6]} 8. O-O {[%clk 0:03:00.3]}
8... e5 {[%clk 0:02:56.5]} 9. d5 {[%clk 0:02:58.5]} 9... Na5 {[%clk 0:02:56.2]}
10. Ng3 {[%clk 0:02:58.5]} 10... b6 {[%clk 0:02:55.3]} 11. e4 {[%clk 0:02:56.9]}
11... h6 {[%clk 0:02:55]} 12. h3 {[%clk 0:02:56.5]} 12... Qe7 {[%clk 0:02:54.7]}
13. Qe2 {[%clk 0:02:55.7]} 13... Bd7 {[%clk 0:02:53.2]} 14. f4 {[%clk
0:02:55.7]} 14... Kd8 {[%clk 0:02:53.2]} 15. fxe5 {[%clk 0:02:54.1]} 15... dxe5
{[%clk 0:02:53.1]} 16. Nf5 {[%clk 0:02:51.4]} 16... Bxf5 {[%clk 0:02:52.8]} 17.
Rxf5 {[%clk 0:02:52.2]} 17... Ne8 {[%clk 0:02:52]} 18. Bd2 {[%clk 0:02:47.8]}
18... Nd6 {[%clk 0:02:50.9]} 19. Rf2 {[%clk 0:02:46.8]} 19... f6 {[%clk
0:02:49.5]} 20. Raf1 {[%clk 0:02:47.4]} 20... Qd7 {[%clk 0:02:48.5]} 21. Rf3
{[%clk 0:02:34.9]} 21... Kc7 {[%clk 0:02:47.4]} 22. Rg3 {[%clk 0:02:35.2]} 22...
Rag8 {[%clk 0:02:43.7]} 23. Rg6 {[%clk 0:02:24.3]} 23... Qe8 {[%clk 0:02:29.9]}
24. Qg4 {[%clk 0:02:23.1]} 24... Naxc4 {[%clk 0:02:18.2]} 25. Rxg7+ {[%clk
0:02:21.7]} 25... Kb8 {[%clk 0:02:14.1]} 26. Bxc4 {[%clk 0:02:19.2]} 26... Nxc4
{[%clk 0:02:13.4]} 27. Bc1 {[%clk 0:02:19.9]} 27... h5 {[%clk 0:02:11.5]} 28.
Rxg8 {[%clk 0:02:14.6]} 28... Rxg8 {[%clk 0:02:09.9]} 29. Qf5 {[%clk 0:02:13]}
29... Qg6 {[%clk 0:01:54.3]} 30. Qxg6 {[%clk 0:02:04.7]} 30... Rxg6 {[%clk
0:01:53.9]} 31. Rf5 {[%clk 0:02:05.4]} 31... h4 {[%clk 0:01:48.3]} 32. Rh5
{[%clk 0:02:04.4]} 32... b5 {[%clk 0:01:37.1]} 33. Rxh4 {[%clk 0:02:03.4]} 33...
a5 {[%clk 0:01:36.4]} 34. g4 {[%clk 0:02:02.2]} 34... a4 {[%clk 0:01:35.6]} 35.
Kf2 {[%clk 0:01:24.4]} 35... b4 {[%clk 0:01:33.4]} 36. cxb4 {[%clk 0:01:23]}
36... cxb4 {[%clk 0:01:33.8]} 37. Ke2 {[%clk 0:01:19.9]} 37... b3 {[%clk
0:01:33.6]} 38. axb3 {[%clk 0:01:19.8]} 38... axb3 {[%clk 0:01:33.9]} 39. Kd3
{[%clk 0:01:16.4]} 39... b2 {[%clk 0:01:33.7]} 40. Bxb2 {[%clk 0:01:17]} 40...
Nxb2+ {[%clk 0:01:34]} 41. Kc3 {[%clk 0:01:17.6]} 41... Nd1+ {[%clk 0:01:25.2]}
42. Kd2 {[%clk 0:01:16.7]} 42... Nf2 {[%clk 0:01:19.9]} 43. Ke3 {[%clk
0:01:15.3]} 43... Nd1+ {[%clk 0:01:18.8]} 44. Kd2 {[%clk 0:01:15.7]} 44... Nb2
{[%clk 0:01:18.8]} 45. Kc3 {[%clk 0:01:13.2]} 45... Nd1+ {[%clk 0:01:12.6]} 46.
Kd2 {[%clk 0:00:55.7]} 1/2-1/2

[Event "Early-Titled-Tuesday-Blitz-March-26-2024"]
[Site "Chess.com"]
[Date "2024.03.26"]
[Round "9"]
[White "superchess02"]
[Black "chess_blitz00"]
[Result "1-0"]
[WhiteElo "2861"]
[BlackElo "2580"]
[TimeControl "180+1"]
[EndTime "9:41:34 PDT"]
[Termination "superchess02 won by checkmate"]

1. d4 {[%clk 0:03:00.9]} 1... d6 {[%clk 0:03:00.1]} 2. e4 {[%clk 0:03:00.2]}
2... Nf6 {[%clk 0:02:59.5]} 3. Nc3 {[%clk 0:03:00.4]} 3... e5 {[%clk 0:02:59.9]}
4. Nge2 {[%clk 0:02:57.8]} 4... Be7 {[%clk 0:02:57.3]} 5. f3 {[%clk 0:02:57.5]}
5... O-O {[%clk 0:02:57.6]} 6. Be3 {[%clk 0:02:58.1]} 6... c6 {[%clk 0:02:57.4]}
7. Qd2 {[%clk 0:02:58.4]} 7... a5 {[%clk 0:02:52.5]} 8. g4 {[%clk 0:02:58.5]}
8... a4 {[%clk 0:02:44.9]} 9. a3 {[%clk 0:02:57.9]} 9... Qa5 {[%clk 0:02:44]}
10. h4 {[%clk 0:02:53.1]} 10... b5 {[%clk 0:02:36]} 11. Ng3 {[%clk 0:02:40.1]}
11... exd4 {[%clk 0:01:11.9]} 12. Bxd4 {[%clk 0:02:31.4]} 12... Be6 {[%clk
0:00:55.5]} 13. g5 {[%clk 0:02:28.4]} 13... Nfd7 {[%clk 0:00:54.8]} 14. Nh5
{[%clk 0:02:27.2]} 14... Ne5 {[%clk 0:00:52.6]} 15. Be2 {[%clk 0:02:25.1]} 15...
c5 {[%clk 0:00:46.1]} 16. Be3 {[%clk 0:02:25]} 16... Nbc6 {[%clk 0:00:37.1]} 17.
f4 {[%clk 0:02:14.7]} 17... Nc4 {[%clk 0:00:25.9]} 18. Bxc4 {[%clk 0:02:13.6]}
18... Bxc4 {[%clk 0:00:24.1]} 19. Nd5 {[%clk 0:02:13.8]} 19... Qxd2+ {[%clk
0:00:23.3]} 20. Kxd2 {[%clk 0:02:14.7]} 20... Bxd5 {[%clk 0:00:24]} 21. exd5
{[%clk 0:02:15.6]} 21... Na5 {[%clk 0:00:22.8]} 22. Rae1 {[%clk 0:02:07.2]}
22... Rfe8 {[%clk 0:00:20.2]} 23. Kc1 {[%clk 0:02:05.1]} 23... g6 {[%clk
0:00:16.2]} 24. Ng3 {[%clk 0:02:03]} 24... Bf8 {[%clk 0:00:08.6]} 25. Bf2 {[%clk
0:01:56.3]} 25... Bg7 {[%clk 0:00:06.6]} 26. f5 {[%clk 0:01:51.6]} 26... Be5
{[%clk 0:00:05.9]} 27. h5 {[%clk 0:01:46.3]} 27... Nc4 {[%clk 0:00:05]} 28. c3
{[%clk 0:01:45.8]} 28... Bf4+ {[%clk 0:00:04.3]} 29. Kc2 {[%clk 0:01:45]} 29...
Bxg5 {[%clk 0:00:04]} 30. Ne4 {[%clk 0:01:42.9]} 30... Bf4 {[%clk 0:00:03.2]}
31. Nf6+ {[%clk 0:01:42.5]} 31... Kg7 {[%clk 0:00:03.7]} 32. Nxe8+ {[%clk
0:01:42.6]} 32... Kf8 {[%clk 0:00:04.4]} 33. hxg6 {[%clk 0:01:42.7]} 33... hxg6
{[%clk 0:00:03.8]} 34. Rh8# {[%clk 0:01:42]} 1-0

[Event "Early-Titled-Tuesday-Blitz-March-26-2024"]
[Site "Chess.com"]
[Date "2024.03.26"]
[Round "9"]
[White "Bilan_Danila"]
[Black "Veleamater"]
[Result "1-0"]
[WhiteElo "2628"]
[BlackElo "2404"]
[TimeControl "180+1"]
[EndTime "9:41:37 PDT"]
[Termination "Bilan_Danila won by resignation"]

1. d4 {[%clk 0:03:00.9]} 1... d6 {[%clk 0:03:00.9]} 2. Nf3 {[%clk 0:02:58.8]}
2... g6 {[%clk 0:03:01.4]} 3. Bg5 {[%clk 0:02:58.6]} 3... Bg7 {[%clk 0:03:01.8]}
4. c3 {[%clk 0:02:59.2]} 4... h6 {[%clk 0:03:01.9]} 5. Bh4 {[%clk 0:02:59.1]}
5... Nc6 {[%clk 0:03:02.5]} 6. Nbd2 {[%clk 0:02:59.3]} 6... Nf6 {[%clk 0:03:03]}
7. e4 {[%clk 0:02:59.4]} 7... O-O {[%clk 0:03:03.4]} 8. Bc4 {[%clk 0:02:59.5]}
8... a6 {[%clk 0:03:02.9]} 9. a4 {[%clk 0:02:59.7]} 9... e5 {[%clk 0:02:59.9]}
10. dxe5 {[%clk 0:02:54.6]} 10... dxe5 {[%clk 0:02:59.5]} 11. O-O {[%clk
0:02:54.8]} 11... Qe7 {[%clk 0:02:59.1]} 12. Qc2 {[%clk 0:02:54.2]} 12... g5
{[%clk 0:02:58.5]} 13. Bg3 {[%clk 0:02:54]} 13... Nh5 {[%clk 0:02:58.8]} 14.
Rfe1 {[%clk 0:02:54.1]} 14... Nf4 {[%clk 0:02:58.9]} 15. Nf1 {[%clk 0:02:54.4]}
15... Kh8 {[%clk 0:02:58]} 16. Ne3 {[%clk 0:02:50.6]} 16... Be6 {[%clk
0:02:53.8]} 17. Nf5 {[%clk 0:02:50.3]} 17... Qf6 {[%clk 0:02:47.7]} 18. Ne3
{[%clk 0:02:03.6]} 18... Ne7 {[%clk 0:02:30.4]} 19. Rad1 {[%clk 0:01:55.7]}
19... Bxc4 {[%clk 0:02:28.2]} 20. Nxc4 {[%clk 0:01:56.6]} 20... Qe6 {[%clk
0:02:27.8]} 21. Ne3 {[%clk 0:01:48.7]} 21... c6 {[%clk 0:02:25.2]} 22. Bxf4
{[%clk 0:01:35.4]} 22... exf4 {[%clk 0:02:23.4]} 23. Nf5 {[%clk 0:01:31.9]}
23... Rfd8 {[%clk 0:02:12.8]} 24. h3 {[%clk 0:01:26.9]} 24... c5 {[%clk
0:02:01.7]} 25. Nxe7 {[%clk 0:01:02]} 25... Qxe7 {[%clk 0:01:59.4]} 26. Rd5
{[%clk 0:01:02.7]} 26... Re8 {[%clk 0:01:41.6]} 27. e5 {[%clk 0:00:51.8]} 27...
Rad8 {[%clk 0:01:35.1]} 28. c4 {[%clk 0:00:48.6]} 28... Qe6 {[%clk 0:01:27.1]}
29. Qd3 {[%clk 0:00:48.5]} 29... Qg6 {[%clk 0:01:01.5]} 30. Rxd8 {[%clk
0:00:44.7]} 30... Rxd8 {[%clk 0:00:57.1]} 31. Qxd8+ {[%clk 0:00:43]} 31... Kh7
{[%clk 0:00:56.5]} 32. Qd5 {[%clk 0:00:41.2]} 1-0

[Event "Early-Titled-Tuesday-Blitz-March-26-2024"]
[Site "Chess.com"]
[Date "2024.03.26"]
[Round "9"]
[White "xasid81"]
[Black "agvania123"]
[Result "1-0"]
[WhiteElo "2592"]
[BlackElo "2422"]
[TimeControl "180+1"]
[EndTime "9:41:40 PDT"]
[Termination "xasid81 won by resignation"]

1. g3 {[%clk 0:03:00.9]} 1... c5 {[%clk 0:02:58.8]} 2. Bg2 {[%clk 0:03:00.2]}
2... Nc6 {[%clk 0:02:59.2]} 3. Nf3 {[%clk 0:02:58.5]} 3... e5 {[%clk 0:02:59.2]}
4. O-O {[%clk 0:02:58.9]} 4... g6 {[%clk 0:02:58.8]} 5. Nc3 {[%clk 0:02:57.6]}
5... Bg7 {[%clk 0:02:58.5]} 6. e4 {[%clk 0:02:56]} 6... Nge7 {[%clk 0:02:58.8]}
7. d3 {[%clk 0:02:56.5]} 7... O-O {[%clk 0:02:58.3]} 8. Nd5 {[%clk 0:02:57]}
8... d6 {[%clk 0:02:58.4]} 9. c4 {[%clk 0:02:55.3]} 9... Nxd5 {[%clk 0:02:57.1]}
10. cxd5 {[%clk 0:02:56.2]} 10... Nd4 {[%clk 0:02:57.9]} 11. Nxd4 {[%clk
0:02:56.6]} 11... cxd4 {[%clk 0:02:58.8]} 12. f4 {[%clk 0:02:57]} 12... f5
{[%clk 0:02:58.8]} 13. fxe5 {[%clk 0:02:56.9]} 13... dxe5 {[%clk 0:02:59.2]} 14.
Qb3 {[%clk 0:02:53.5]} 14... Qd6 {[%clk 0:02:57.2]} 15. Bd2 {[%clk 0:02:53.2]}
15... a5 {[%clk 0:02:53.7]} 16. a4 {[%clk 0:02:52.3]} 16... fxe4 {[%clk
0:02:48.4]} 17. Rxf8+ {[%clk 0:02:50.2]} 17... Bxf8 {[%clk 0:02:47.7]} 18. Bxe4
{[%clk 0:02:47.4]} 18... b6 {[%clk 0:02:43.5]} 19. Rc1 {[%clk 0:02:45.8]} 19...
Bb7 {[%clk 0:02:38.2]} 20. h4 {[%clk 0:02:35.1]} 20... Be7 {[%clk 0:02:28.2]}
21. Kg2 {[%clk 0:02:14.9]} 21... Rf8 {[%clk 0:02:15]} 22. Rf1 {[%clk 0:02:02.2]}
22... Rxf1 {[%clk 0:02:00.1]} 23. Kxf1 {[%clk 0:02:03.1]} 23... Bc8 {[%clk
0:01:32.2]} 24. Kg2 {[%clk 0:01:55.3]} 24... Kg7 {[%clk 0:01:28.8]} 25. Qc4
{[%clk 0:01:46.6]} 25... Qd7 {[%clk 0:01:21.7]} 26. Kf2 {[%clk 0:01:30.6]} 26...
Qh3 {[%clk 0:00:53]} 27. Qc7 {[%clk 0:01:28.3]} 27... Qh2+ {[%clk 0:00:28.8]}
28. Bg2 {[%clk 0:01:26.2]} 28... Bh3 {[%clk 0:00:29.3]} 29. Qxe7+ {[%clk
0:01:25]} 29... Kg8 {[%clk 0:00:29.6]} 30. Qe8+ {[%clk 0:01:09.2]} 30... Kg7
{[%clk 0:00:29.2]} 31. Qxe5+ {[%clk 0:01:02.7]} 1-0

[Event "Early-Titled-Tuesday-Blitz-March-26-2024"]
[Site "Chess.com"]
[Date "2024.03.26"]
[Round "9"]
[White "JaackCamel"]
[Black "JAN2404"]
[Result "1-0"]
[WhiteElo "2192"]
[BlackElo "1954"]
[TimeControl "180+1"]
[EndTime "9:41:42 PDT"]
[Termination "JaackCamel won by resignation"]

1. d4 {[%clk 0:03:00.9]} 1... Nf6 {[%clk 0:02:59.6]} 2. c4 {[%clk 0:03:00.3]}
2... g6 {[%clk 0:03:00]} 3. Nc3 {[%clk 0:02:59.7]} 3... Bg7 {[%clk 0:03:00.4]}
4. e4 {[%clk 0:02:59.4]} 4... d6 {[%clk 0:03:00.3]} 5. Nf3 {[%clk 0:02:58.8]}
5... O-O {[%clk 0:02:59.9]} 6. Be2 {[%clk 0:02:58.8]} 6... e5 {[%clk 0:03:00.5]}
7. Be3 {[%clk 0:02:58.2]} 7... Nc6 {[%clk 0:02:58.1]} 8. d5 {[%clk 0:02:57.9]}
8... Ne7 {[%clk 0:02:57.9]} 9. Nd2 {[%clk 0:02:57.8]} 9... Nd7 {[%clk
0:02:56.2]} 10. b4 {[%clk 0:02:56.5]} 10... f5 {[%clk 0:02:56.1]} 11. f3 {[%clk
0:02:56.2]} 11... f4 {[%clk 0:02:54.9]} 12. Bf2 {[%clk 0:02:55.8]} 12... g5
{[%clk 0:02:51.5]} 13. c5 {[%clk 0:02:55.2]} 13... Ng6 {[%clk 0:02:48.4]} 14.
Nc4 {[%clk 0:02:54.5]} 14... Nf6 {[%clk 0:02:43.1]} 15. cxd6 {[%clk 0:02:52.9]}
15... cxd6 {[%clk 0:02:42.5]} 16. Nb5 {[%clk 0:02:52.9]} 16... Ne8 {[%clk
0:02:42.5]} 17. Nxa7 {[%clk 0:02:52.1]} 17... Nh4 {[%clk 0:02:32.8]} 18. Rg1
{[%clk 0:02:48]} 18... Bd7 {[%clk 0:02:11.2]} 19. Nb6 {[%clk 0:02:46.4]} 19...
Nf6 {[%clk 0:01:47.2]} 20. Nxd7 {[%clk 0:02:42.9]} 20... Qxd7 {[%clk 0:01:46.6]}
21. a4 {[%clk 0:02:27.1]} 21... Ng6 {[%clk 0:01:38.7]} 22. a5 {[%clk 0:02:24.3]}
22... g4 {[%clk 0:01:38.6]} 23. Rc1 {[%clk 0:02:14.8]} 23... g3 {[%clk
0:01:25.8]} 24. Bb6 {[%clk 0:02:02.2]} 24... Nh4 {[%clk 0:01:14.9]} 25. h3
{[%clk 0:01:58]} 25... Ne8 {[%clk 0:00:48.8]} 26. Qc2 {[%clk 0:01:52.8]} 26...
Bf6 {[%clk 0:00:36.8]} 27. Kd2 {[%clk 0:01:48.3]} 27... Bd8 {[%clk 0:00:35.1]}
28. Bxd8 {[%clk 0:01:40]} 28... Qxd8 {[%clk 0:00:33.8]} 29. Nb5 {[%clk
0:01:38.2]} 29... Ng6 {[%clk 0:00:28.7]} 30. Qc4 {[%clk 0:01:35.6]} 30... Qd7
{[%clk 0:00:20.4]} 31. Rc3 {[%clk 0:01:34.9]} 31... Nf6 {[%clk 0:00:20.2]} 32.
Rgc1 {[%clk 0:01:33.9]} 32... Rfc8 {[%clk 0:00:20.4]} 33. Qxc8+ {[%clk
0:01:31.3]} 33... Rxc8 {[%clk 0:00:20.3]} 34. Rxc8+ {[%clk 0:01:31.3]} 34... Nf8
{[%clk 0:00:19.7]} 35. R1c7 {[%clk 0:01:30.1]} 35... Qxh3 {[%clk 0:00:13]} 36.
gxh3 {[%clk 0:01:29]} 36... g2 {[%clk 0:00:13.5]} 37. Rc1 {[%clk 0:01:28.2]}
37... Nh5 {[%clk 0:00:13.1]} 38. Rg1 {[%clk 0:01:26.4]} 1-0

[Event "Early-Titled-Tuesday-Blitz-March-26-2024"]
[Site "Chess.com"]
[Date "2024.03.26"]
[Round "9"]
[White "Yaacovn"]
[Black "jcibarra"]
[Result "1-0"]
[WhiteElo "2930"]
[BlackElo "3001"]
[TimeControl "180+1"]
[EndTime "9:41:50 PDT"]
[Termination "Yaacovn won by checkmate"]

1. d4 {[%clk 0:02:41.6]} 1... Nf6 {[%clk 0:02:59.5]} 2. e3 {[%clk 0:02:41.4]}
2... g6 {[%clk 0:02:55.8]} 3. Nf3 {[%clk 0:02:41.6]} 3... Bg7 {[%clk 0:02:56]}
4. Be2 {[%clk 0:02:42.5]} 4... d6 {[%clk 0:02:55.9]} 5. O-O {[%clk 0:02:43.4]}
5... Nbd7 {[%clk 0:02:56.2]} 6. b3 {[%clk 0:02:44.3]} 6... e5 {[%clk 0:02:56.7]}
7. dxe5 {[%clk 0:02:44.1]} 7... dxe5 {[%clk 0:02:57]} 8. Ba3 {[%clk 0:02:43.6]}
8... e4 {[%clk 0:02:41.8]} 9. Nd4 {[%clk 0:02:38.4]} 9... c5 {[%clk 0:02:35.6]}
10. Nb5 {[%clk 0:02:35.8]} 10... O-O {[%clk 0:02:32.9]} 11. Bb2 {[%clk
0:02:35.4]} 11... Ne8 {[%clk 0:02:21.3]} 12. Bxg7 {[%clk 0:02:33.7]} 12... Kxg7
{[%clk 0:02:22.2]} 13. N1c3 {[%clk 0:02:32.5]} 13... Qe7 {[%clk 0:02:04.4]} 14.
Nd5 {[%clk 0:02:00]} 14... Qe5 {[%clk 0:02:03.5]} 15. c4 {[%clk 0:01:43.2]}
15... a6 {[%clk 0:01:47.3]} 16. Nbc3 {[%clk 0:01:42.7]} 16... Nef6 {[%clk
0:01:47.8]} 17. Qd2 {[%clk 0:01:39]} 17... Nxd5 {[%clk 0:01:44.7]} 18. Nxd5
{[%clk 0:01:38.9]} 18... Nf6 {[%clk 0:01:41.4]} 19. Qc3 {[%clk 0:01:38.7]} 19...
Qxc3 {[%clk 0:01:36.2]} 20. Nxc3 {[%clk 0:01:39.6]} 20... Bd7 {[%clk 0:01:36.2]}
21. Rad1 {[%clk 0:01:37]} 21... Bc6 {[%clk 0:01:36.1]} 22. Rd6 {[%clk
0:01:36.7]} 22... Rfd8 {[%clk 0:01:33.2]} 23. Rfd1 {[%clk 0:01:36.3]} 23... Rd7
{[%clk 0:01:29.6]} 24. Rxd7 {[%clk 0:01:32.5]} 24... Bxd7 {[%clk 0:01:24.4]} 25.
Nxe4 {[%clk 0:01:32.5]} 25... Nxe4 {[%clk 0:01:14.7]} 26. Rxd7 {[%clk
0:01:31.3]} 26... Nc3 {[%clk 0:01:15.3]} 27. Bf3 {[%clk 0:01:31.4]} 27... Rb8
{[%clk 0:00:59.7]} 28. Bxb7 {[%clk 0:01:09.7]} 28... Nxa2 {[%clk 0:00:56]} 29.
Bd5 {[%clk 0:01:08.9]} 29... Rxb3 {[%clk 0:00:54.2]} 30. Rxf7+ {[%clk
0:01:08.6]} 30... Kh6 {[%clk 0:00:54.9]} 31. h4 {[%clk 0:01:07.2]} 31... Nb4
{[%clk 0:00:50.2]} 32. Rb7 {[%clk 0:01:00.5]} 32... a5 {[%clk 0:00:43]} 33. Bg8
{[%clk 0:00:49.6]} 33... Kh5 {[%clk 0:00:39.3]} 34. Rxh7+ {[%clk 0:00:45.9]}
34... Kg4 {[%clk 0:00:39.4]} 35. Be6# {[%clk 0:00:46.4]} 1-0

[Event "Early-Titled-Tuesday-Blitz-March-26-2024"]
[Site "Chess.com"]
[Date "2024.03.26"]
[Round "9"]
[White "Barmen_EV"]
[Black "DavidGavrilescu18"]
[Result "0-1"]
[WhiteElo "2580"]
[BlackElo "2766"]
[TimeControl "180+1"]
[EndTime "9:41:50 PDT"]
[Termination "DavidGavrilescu18 won by resignation"]

1. e4 {[%clk 0:03:00.9]} 1... c5 {[%clk 0:02:37.1]} 2. c3 {[%clk 0:03:00.4]}
2... e6 {[%clk 0:02:35.7]} 3. d4 {[%clk 0:03:00.6]} 3... d5 {[%clk 0:02:36.4]}
4. Nd2 {[%clk 0:03:01]} 4... Nc6 {[%clk 0:02:35.6]} 5. Ngf3 {[%clk 0:03:01.2]}
5... cxd4 {[%clk 0:02:34.1]} 6. cxd4 {[%clk 0:03:01.4]} 6... dxe4 {[%clk
0:02:34.7]} 7. Nxe4 {[%clk 0:03:02.3]} 7... Bb4+ {[%clk 0:02:34.8]} 8. Nc3
{[%clk 0:03:02.6]} 8... Nf6 {[%clk 0:02:34.6]} 9. Bd3 {[%clk 0:03:03.1]} 9...
O-O {[%clk 0:02:34.9]} 10. O-O {[%clk 0:03:03.7]} 10... b6 {[%clk 0:02:35.1]}
11. Re1 {[%clk 0:03:03.5]} 11... Bb7 {[%clk 0:02:35.1]} 12. a3 {[%clk
0:03:03.3]} 12... Bxc3 {[%clk 0:02:34.5]} 13. bxc3 {[%clk 0:03:04.2]} 13... h6
{[%clk 0:02:35]} 14. Bc2 {[%clk 0:03:04.4]} 14... Rc8 {[%clk 0:02:34.5]} 15. Qd3
{[%clk 0:03:04.2]} 15... Ne7 {[%clk 0:02:34.4]} 16. Ne5 {[%clk 0:03:01.7]} 16...
Qd5 {[%clk 0:02:28.4]} 17. f3 {[%clk 0:02:50.3]} 17... Rfd8 {[%clk 0:02:25.7]}
18. Be3 {[%clk 0:02:36.4]} 18... Nc6 {[%clk 0:02:11.3]} 19. Ng4 {[%clk
0:02:16.6]} 19... Nxg4 {[%clk 0:02:09.9]} 20. Qh7+ {[%clk 0:02:16.9]} 20... Kf8
{[%clk 0:02:10]} 21. c4 {[%clk 0:01:18]} 21... Qh5 {[%clk 0:01:41.6]} 22. fxg4
{[%clk 0:01:13.8]} 22... Qxg4 {[%clk 0:01:42.5]} 23. d5 {[%clk 0:01:07.6]} 23...
Ne5 {[%clk 0:01:21.6]} 24. Kh1 {[%clk 0:00:30.3]} 24... Rxc4 {[%clk 0:01:17.8]}
25. Bb3 {[%clk 0:00:08.7]} 25... Bxd5 {[%clk 0:01:17.6]} 26. Rg1 {[%clk
0:00:04.8]} 26... Be4 {[%clk 0:01:18]} 27. Qh8+ {[%clk 0:00:04.6]} 27... Ke7
{[%clk 0:01:18.2]} 28. Qxd8+ {[%clk 0:00:01.4]} 28... Kxd8 {[%clk 0:01:19.1]}
29. Bxc4 {[%clk 0:00:02.2]} 29... Nxc4 {[%clk 0:01:19.9]} 30. Rad1+ {[%clk
0:00:02.4]} 30... Ke7 {[%clk 0:01:20.4]} 31. Bc1 {[%clk 0:00:01.9]} 31... Bxg2+
{[%clk 0:01:20.7]} 32. Rxg2 {[%clk 0:00:02.8]} 32... Qxd1+ {[%clk 0:01:21.4]}
0-1

[Event "Early-Titled-Tuesday-Blitz-March-26-2024"]
[Site "Chess.com"]
[Date "2024.03.26"]
[Round "9"]
[White "Gabrielian_Artur"]
[Black "alexrustemov"]
[Result "1-0"]
[WhiteElo "2826"]
[BlackElo "2927"]
[TimeControl "180+1"]
[EndTime "9:41:52 PDT"]
[Termination "Gabrielian_Artur won on time"]

1. e4 {[%clk 0:02:57.6]} 1... e6 {[%clk 0:03:00.4]} 2. d4 {[%clk 0:02:57.5]}
2... d5 {[%clk 0:03:01]} 3. e5 {[%clk 0:02:57.9]} 3... c5 {[%clk 0:03:00.4]} 4.
c3 {[%clk 0:02:58.3]} 4... Qb6 {[%clk 0:03:00.8]} 5. Nf3 {[%clk 0:02:58.2]} 5...
Bd7 {[%clk 0:03:01.2]} 6. Be2 {[%clk 0:02:54.8]} 6... Bb5 {[%clk 0:03:00.8]} 7.
dxc5 {[%clk 0:02:55.1]} 7... Bxc5 {[%clk 0:03:00]} 8. b4 {[%clk 0:02:55.4]} 8...
Bf8 {[%clk 0:02:51.6]} 9. Bxb5+ {[%clk 0:02:52.4]} 9... Qxb5 {[%clk 0:02:51.6]}
10. Na3 {[%clk 0:02:52.7]} 10... Qd7 {[%clk 0:02:51.3]} 11. O-O {[%clk
0:02:50.1]} 11... Ne7 {[%clk 0:02:51.9]} 12. c4 {[%clk 0:02:47]} 12... dxc4
{[%clk 0:02:42.8]} 13. Nxc4 {[%clk 0:02:42.4]} 13... Nd5 {[%clk 0:02:42.6]} 14.
a3 {[%clk 0:02:31.6]} 14... Be7 {[%clk 0:02:42]} 15. Bg5 {[%clk 0:02:23.2]}
15... O-O {[%clk 0:02:40.5]} 16. Bxe7 {[%clk 0:02:22.7]} 16... Qxe7 {[%clk
0:02:39.6]} 17. Re1 {[%clk 0:02:18]} 17... Rd8 {[%clk 0:02:36.1]} 18. Qc2 {[%clk
0:02:15.4]} 18... Nd7 {[%clk 0:02:20.8]} 19. Ne3 {[%clk 0:02:12.4]} 19... Nxe3
{[%clk 0:02:17]} 20. Rxe3 {[%clk 0:02:12.2]} 20... Nb6 {[%clk 0:02:17.5]} 21.
Qe4 {[%clk 0:01:58.9]} 21... Nd5 {[%clk 0:02:14.8]} 22. Rd3 {[%clk 0:01:58.6]}
22... Rac8 {[%clk 0:02:13.4]} 23. h4 {[%clk 0:01:53.7]} 23... h6 {[%clk
0:02:13.2]} 24. Rad1 {[%clk 0:01:42.1]} 24... Rc7 {[%clk 0:01:47.1]} 25. Nd4
{[%clk 0:01:30.7]} 25... Nc3 {[%clk 0:01:40.4]} 26. Nf5 {[%clk 0:01:30.5]} 26...
Nxe4 {[%clk 0:00:08.5]} 27. Nxe7+ {[%clk 0:01:29.2]} 27... Rxe7 {[%clk
0:00:08.5]} 28. Rxd8+ {[%clk 0:01:28.8]} 28... Kh7 {[%clk 0:00:09]} 29. R1d7
{[%clk 0:01:29]} 29... Rxd7 {[%clk 0:00:03.5]} 30. Rxd7 {[%clk 0:01:28.9]} 30...
Kg6 {[%clk 0:00:02.7]} 31. Rxb7 {[%clk 0:01:28.5]} 31... a6 {[%clk 0:00:02.7]}
32. a4 {[%clk 0:01:28.3]} 32... Nc3 {[%clk 0:00:02.2]} 33. a5 {[%clk 0:01:27.7]}
33... Nd5 {[%clk 0:00:01.5]} 34. b5 {[%clk 0:01:27.4]} 1-0